bitfinex/quotes_BTCUSD_20220211
["timestamp","ask_amount","ask_price","bid_price","bid_amount"]
[1644606208480,0.04,42393.0,42385.0,0.33620361]
[1644606208682,0.28760339,42393.0,42385.0,0.33620361]
[1644606208881,0.04,42398.0,42385.0,0.33620361]
[1644606209079,0.04,42394.0,42382.0,0.50463985]
[1644606209280,0.04,42393.0,42382.0,0.31475657]
[1644606209480,0.04,42393.0,42380.0,0.11303]
[1644606210080,0.04,42393.0,42384.0,0.00027765]
[1644606210287,7.573e-05,42405.0,42385.0,1.11820506]
[1644606210546,7.573e-05,42405.0,42387.0,0.05]
[1644606210737,7.573e-05,42405.0,42386.0,0.32071566]
[1644606210738,7.573e-05,42405.0,42388.0,0.05]
[1644606210935,0.35,42402.0,42388.0,0.05]
[1644606211141,0.28419159,42394.0,42386.0,0.32071566]
[1644606211337,0.15,42400.0,42391.0,0.0002776]
[1644606211537,7.573e-05,42405.0,42391.0,0.0002776]
[1644606211935,7.573e-05,42405.0,42391.0,0.32099326]
[1644606212137,0.05,42403.0,42391.0,0.0002776]
[1644606212339,7.573e-05,42405.0,42372.0,0.0011]
[1644606212340,0.15,42392.0,42382.0,0.32071566]
[1644606212538,0.29984372,42394.0,42384.0,0.059015]
[1644606212736,0.35,42387.0,42384.0,0.059015]
[1644606212936,0.31724604,42386.0,42384.0,0.059015]
[1644606213137,0.36724604,42386.0,42384.0,0.059015]
[1644606213337,0.05,42386.0,42384.0,0.3780637]
[1644606213535,0.29984372,42394.0,42384.0,0.11222006]
[1644606214386,0.29984372,42394.0,42384.0,0.044015]
[1644606214585,3.12310604,42405.0,42372.0,0.32181566]
[1644606214586,0.7,42384.0,42372.0,0.32181566]
[1644606214785,0.7,42384.0,42372.0,0.0011]
[1644606214990,0.15,42392.0,42387.0,0.00027694]
[1644606215189,0.35,42397.0,42387.0,0.05929394]
[1644606215387,7.557e-05,42399.0,42396.0,0.37573542]
[1644606215588,0.15007557,42399.0,42396.0,0.08822606]
[1644606215787,7.557e-05,42399.0,42396.0,0.08822606]
[1644606215985,7.557e-05,42399.0,42396.0,0.13822606]
[1644606216186,7.557e-05,42399.0,42396.0,0.05]
[1644606216386,7.557e-05,42399.0,42391.0,0.00027691]
[1644606216587,7.557e-05,42399.0,42396.0,0.67990374]
[1644606216789,0.09403,42400.0,42397.0,0.29177595]
[1644606217187,0.09403,42400.0,42397.0,0.31854618]
[1644606217387,0.09403,42400.0,42396.0,0.33665617]
[1644606217589,0.09403,42400.0,42397.0,0.29142388]
[1644606217789,0.00058274,42409.0,42399.0,0.05]
[1644606218032,0.47834556,42422.0,42400.0,0.31387884]
[1644606218229,0.09403,42417.0,42401.0,0.05]
[1644606218729,0.07950177,42417.0,42415.0,0.19603028]
[1644606218930,0.07950177,42417.0,42413.0,0.25445281]
[1644606218931,0.14742101,42414.0,42413.0,0.25445281]
[1644606219129,0.1052,42423.0,42413.0,0.25445281]
[1644606219532,0.1052,42423.0,42418.0,0.39130257]
[1644606219835,0.33634928,42439.0,42429.0,0.15]
[1644606220032,0.33282772,42439.0,42430.0,0.35327884]
[1644606220240,0.2,42452.0,42432.0,1.05]
[1644606220435,0.008323,42450.0,42433.0,0.35327884]
[1644606220631,0.008323,42450.0,42434.0,0.05]
[1644606220632,0.24377271,42446.0,42434.0,0.05]
[1644606220833,0.31076926,42444.0,42435.0,0.0394]
[1644606221231,0.2,42443.0,42435.0,0.0394]
[1644606221433,0.31076926,42444.0,42435.0,0.0394]
[1644606221636,0.2,42451.0,42435.0,0.0394]
[1644606221888,0.2,42451.0,42436.0,0.31387884]
[1644606222092,0.05,42446.0,42423.0,0.16617195]
[1644606222288,0.05,42446.0,42422.0,0.0394]
[1644606222490,0.2,42451.0,42409.0,0.1]
[1644606222491,0.2,42420.0,42409.0,0.1]
[1644606222689,1.36387884,42445.0,42402.0,0.28560925]
[1644606222690,0.29942549,42410.0,42402.0,0.28560925]
[1644606222891,0.29942549,42410.0,42401.0,0.01]
[1644606222892,0.31387884,42419.0,42401.0,0.01]
[1644606223091,0.34288261,42421.0,42401.0,0.01]
[1644606223092,0.05,42420.0,42418.0,0.24269074]
[1644606223289,1.05,42420.0,42405.0,0.05]
[1644606223687,0.34607903,42409.0,42405.0,0.05]
[1644606223892,0.34607903,42409.0,42404.0,0.117952]
[1644606224088,0.39607903,42409.0,42404.0,0.117952]
[1644606224289,0.39607903,42409.0,42404.0,0.11723133]
[1644606224490,0.85,42408.0,42404.0,0.11723133]
[1644606225290,0.85,42408.0,42401.0,0.01]
[1644606225537,0.00058378,42412.0,42401.0,0.01]
[1644606225933,0.00058378,42412.0,42404.0,0.2900763]
[1644606226133,0.05,42423.0,42404.0,0.2900763]
[1644606226333,0.05,42423.0,42407.0,0.26415434]
[1644606226334,0.058985,42422.0,42407.0,0.26415434]
[1644606226534,0.36073204,42409.0,42407.0,0.31415434]
[1644606226734,0.05,42421.0,42407.0,0.05]
[1644606226934,0.05,42409.0,42406.0,0.31387884]
[1644606227136,0.053985,42422.0,42405.0,0.42286184]
[1644606227335,0.108971,42427.0,42405.0,0.42286184]
[1644606227534,0.108971,42427.0,42405.0,0.52286184]
[1644606227936,0.35122224,42419.0,42411.0,0.058974]
[1644606228138,0.35122224,42419.0,42405.0,0.46387884]
[1644606228337,9.0,42422.0,42405.0,0.36387884]
[1644606228538,9.0,42422.0,42407.0,0.330484]
[1644606228738,9.0,42422.0,42408.0,0.40032761]
[1644606228937,9.0,42422.0,42411.0,0.058964]
[1644606229138,0.08,42421.0,42412.0,1.021577]
[1644606229381,9.0,42422.0,42420.0,0.55964561]
[1644606229382,3.936852,42422.0,42420.0,0.55964561]
[1644606229588,2.22366881,42422.0,42420.0,0.60964561]
[1644606229881,0.00233552,42428.0,42421.0,1.05]
[1644606230282,1.0,42444.0,42423.0,1.05]
[1644606230283,0.008323,42442.0,42423.0,1.05]
[1644606230480,0.008323,42442.0,42428.0,0.31594823]
[1644606230887,0.008323,42442.0,42418.0,0.05]
[1644606230888,0.02038747,42424.0,42418.0,0.05]
[1644606231084,0.02038747,42424.0,42413.0,1.226846]
[1644606231282,0.02038747,42424.0,42419.0,0.27924996]
[1644606231684,0.02038747,42424.0,42420.0,0.0394]
[1644606231984,0.02038747,42424.0,42420.0,0.32566382]
[1644606232184,0.02038747,42424.0,42420.0,0.37566382]
[1644606232588,0.02038747,42424.0,42420.0,0.148351]
[1644606232887,0.02038747,42424.0,42421.0,0.117903]
[1644606233128,1.0,42444.0,42422.0,0.0394]
[1644606233335,1.0,42444.0,42423.0,0.32334476]
[1644606233532,1.0,42444.0,42415.0,0.05]
[1644606233533,1.05,42431.0,42415.0,0.05]
[1644606233839,0.32334476,42430.0,42415.0,0.05]
[1644606234029,0.05,42427.0,42406.0,0.5]
[1644606234230,0.32334476,42430.0,42421.0,0.117903]
[1644606234432,0.32667255,42427.0,42421.0,0.11819245]
[1644606234830,0.23340562,42426.0,42421.0,0.11819245]
[1644606235029,6.386e-05,42424.0,42421.0,0.00028945]
[1644606235430,6.386e-05,42424.0,42406.0,0.05]
[1644606235431,6.386e-05,42424.0,42420.0,0.117905]
[1644606235629,0.82340862,42431.0,42421.0,0.00028945]
[1644606235834,0.00058522,42430.0,42421.0,0.00028945]
[1644606236032,0.00058522,42430.0,42420.0,0.08831445]
[1644606236232,0.39105269,42427.0,42420.0,0.08831445]
[1644606236433,0.00058522,42430.0,42420.0,0.13831445]
[1644606236634,0.28287558,42449.0,42421.0,0.33003377]
[1644606236635,0.05,42437.0,42421.0,0.33003377]
[1644606236894,0.05,42433.0,42421.0,0.33756446]
[1644606237095,0.48287558,42454.0,42421.0,0.33756446]
[1644606237097,0.05,42445.0,42421.0,0.33756446]
[1644606237294,0.05,42439.0,42423.0,0.058943]
[1644606237493,0.25467505,42432.0,42423.0,0.058943]
[1644606237694,0.05,42439.0,42423.0,0.058943]
[1644606237894,0.05,42439.0,42428.0,0.34819788]
[1644606238096,0.05,42439.0,42428.0,0.46608488]
[1644606238295,0.37811511,42440.0,42428.0,0.117887]
[1644606238497,0.19226435,42438.0,42428.0,0.167887]
[1644606238696,0.29916883,42434.0,42428.0,0.167887]
[1644606239094,0.37811511,42440.0,42428.0,0.16775831]
[1644606239295,0.05,42438.0,42428.0,0.48954646]
[1644606239495,0.05,42432.0,42428.0,0.16775831]
[1644606239698,0.05,42429.0,42416.0,0.33779898]
[1644606239898,0.52811511,42440.0,42403.0,0.5394]
[1644606239899,0.05,42417.0,42406.0,0.33779898]
[1644606240098,0.05,42417.0,42404.0,0.33779898]
[1644606240297,0.1,42417.0,42404.0,0.33779898]
[1644606240533,0.3188448,42414.0,42404.0,0.33779898]
[1644606240739,0.3688448,42414.0,42404.0,0.33779898]
[1644606241335,0.05,42412.0,42396.0,0.03368]
[1644606241535,0.05,42408.0,42396.0,0.03368]
[1644606242134,0.2,42412.0,42396.0,0.03368]
[1644606242135,0.33779898,42421.0,42399.0,0.3256075]
[1644606242343,0.17743347,42428.0,42401.0,0.005]
[1644606242344,0.05,42422.0,42401.0,0.005]
[1644606242838,0.3354389,42421.0,42401.0,0.005]
[1644606243037,0.05,42414.0,42409.0,0.00028966]
[1644606243840,0.05,42414.0,42404.0,0.37233816]
[1644606244038,0.2,42418.0,42409.0,0.00028965]
[1644606244286,0.27074575,42419.0,42409.0,0.00028965]
[1644606244479,0.34355571,42411.0,42404.0,0.35748444]
[1644606244679,0.05,42411.0,42404.0,0.35748444]
[1644606244880,0.17749378,42403.0,42401.0,0.005]
[1644606245086,0.05,42403.0,42401.0,0.005]
[1644606245281,0.06753868,42406.0,42401.0,0.005]
[1644606245482,0.05,42404.0,42401.0,0.005]
[1644606245680,0.05,42404.0,42396.0,0.03368]
[1644606245885,0.56362021,42405.0,42396.0,0.03368]
[1644606245886,0.05,42397.0,42396.0,0.02868]
[1644606247182,0.05,42397.0,42385.0,0.0511]
[1644606247183,0.40391562,42396.0,42385.0,0.0511]
[1644606247380,0.05,42397.0,42385.0,0.0511]
[1644606247381,0.05,42395.0,42385.0,0.0511]
[1644606247587,0.05,42397.0,42385.0,0.0511]
[1644606247782,0.38954174,42410.0,42393.0,0.00118693]
[1644606248038,0.657373,42411.0,42404.0,0.30977876]
[1644606248039,0.32085621,42409.0,42404.0,0.30977876]
[1644606248235,0.5,42411.0,42394.0,2.0]
[1644606248437,0.29145717,42404.0,42394.0,2.0]
[1644606248937,0.07283754,42399.0,42394.0,2.0]
[1644606249137,0.05,42395.0,42394.0,2.32685933]
[1644606249335,0.05,42399.0,42394.0,2.32685933]
[1644606249534,0.34145717,42404.0,42394.0,2.0]
[1644606249738,0.05,42408.0,42394.0,2.0]
[1644606249938,0.176947,42423.0,42394.0,2.0]
[1644606249939,0.33688148,42421.0,42397.0,0.15]
[1644606250148,0.06470719,42409.0,42397.0,0.15]
[1644606250338,0.06470719,42409.0,42394.0,1.995]
[1644606250339,0.31079554,42409.0,42394.0,1.995]
[1644606250536,0.31079554,42409.0,42401.0,0.30782914]
[1644606250537,0.08655492,42402.0,42401.0,0.30782914]
[1644606250735,0.33562668,42410.0,42401.0,0.30782914]
[1644606251139,0.5,42411.0,42401.0,0.30782914]
[1644606251338,0.5,42411.0,42401.0,0.36680214]
[1644606251541,0.5,42411.0,42403.0,8.751e-05]
[1644606251790,0.06808361,42407.0,42403.0,8.751e-05]
[1644606251986,0.06808361,42407.0,42390.0,0.235896]
[1644606251987,0.00016832,42400.0,42390.0,0.235896]
[1644606252184,0.05,42396.0,42388.0,0.0011]
[1644606252484,0.39072785,42399.0,42388.0,0.0011]
[1644606252685,0.05,42396.0,42388.0,0.0011]
[1644606252884,0.30716592,42399.0,42388.0,0.0011]
[1644606252885,0.059,42398.0,42393.0,0.26774248]
[1644606253086,0.26058993,42404.0,42393.0,0.26774248]
[1644606253087,0.177028,42404.0,42396.0,0.6]
[1644606253287,0.5,42411.0,42396.0,0.058988]
[1644606253685,0.05,42399.0,42396.0,0.058988]
[1644606253885,0.05,42399.0,42395.0,0.117975]
[1644606254090,0.05,42396.0,42395.0,0.117975]
[1644606254488,0.05,42396.0,42393.0,0.0011]
[1644606254690,0.04,42395.0,42393.0,0.0011]
[1644606255087,0.04,42395.0,42381.0,0.0119]
[1644606255088,1.05,42394.0,42381.0,0.0119]
[1644606255289,0.12356193,42386.0,42381.0,0.0119]
[1644606255534,0.12356193,42386.0,42373.0,0.0511]
[1644606255535,0.17352592,42380.0,42373.0,0.0511]
[1644606255734,0.04,42379.0,42373.0,0.0511]
[1644606255936,0.29193199,42378.0,42373.0,0.0011]
[1644606256236,0.65422641,42378.0,42373.0,0.0011]
[1644606256437,0.04,42375.0,42371.0,0.0003]
[1644606256841,0.13356193,42372.0,42371.0,0.0003]
[1644606257238,0.08113099,42372.0,42371.0,0.0003]
[1644606257438,0.23097867,42372.0,42371.0,0.0003]
[1644606257638,1.13356193,42371.0,42364.0,0.05]
[1644606257843,1.13356193,42371.0,42360.0,0.598193]
[1644606257844,0.08356193,42366.0,42360.0,0.598193]
[1644606258038,0.08356193,42366.0,42363.0,0.00115322]
[1644606258039,0.12173685,42365.0,42363.0,0.00115322]
[1644606258239,1.05,42362.0,42356.0,0.009059]
[1644606258437,0.12356193,42357.0,42351.0,0.0042]
[1644606258640,0.04,42359.0,42351.0,0.0042]
[1644606258838,0.26012619,42356.0,42352.0,0.118118]
[1644606259041,0.05,42356.0,42352.0,0.118118]
[1644606259325,0.18649839,42375.0,42352.0,0.118118]
[1644606259326,0.059042,42370.0,42352.0,0.118118]
[1644606259507,0.059042,42370.0,42353.0,0.33617742]
[1644606259708,2.91896039,42376.0,42365.0,0.26031607]
[1644606259910,0.50813912,42382.0,42369.0,0.30535378]
[1644606260109,0.17714713,42391.0,42366.0,0.33617742]
[1644606260110,6.215e-05,42376.0,42366.0,0.61108756]
[1644606260309,0.03978215,42390.0,42370.0,0.05]
[1644606260512,0.03978215,42390.0,42371.0,0.39519942]
[1644606260709,0.06993905,42385.0,42380.0,0.19929275]
[1644606260910,0.20632269,42395.0,42381.0,0.118025]
[1644606260911,0.03978215,42392.0,42381.0,0.118025]
[1644606261222,0.26197828,42385.0,42381.0,0.118025]
[1644606261409,0.03978215,42387.0,42381.0,0.118025]
[1644606261615,0.059012,42390.0,42382.0,0.059013]
[1644606261913,0.03978215,42387.0,42382.0,0.059013]
[1644606262112,0.00058561,42385.0,42382.0,0.059013]
[1644606262812,0.03978215,42387.0,42382.0,0.059013]
[1644606263033,0.00058561,42386.0,42382.0,0.054013]
[1644606263233,0.00058561,42386.0,42382.0,0.50045614]
[1644606263734,0.059011,42389.0,42382.0,0.054013]
[1644606263936,0.059011,42389.0,42381.0,0.117225]
[1644606263937,0.26469714,42386.0,42381.0,0.117225]
[1644606264135,0.0890877,42382.0,42376.0,0.11803]
[1644606264335,0.03436776,42377.0,42361.0,0.00027895]
[1644606264539,0.0830423,42373.0,42365.0,0.39382638]
[1644606264734,0.05,42373.0,42365.0,0.39382638]
[1644606264937,0.05,42373.0,42361.0,0.00027895]
[1644606264938,0.08356193,42370.0,42361.0,0.00027895]
[1644606265138,0.03436776,42366.0,42361.0,0.00027895]
[1644606265335,0.03436776,42366.0,42351.0,0.5]
[1644606265536,0.03436776,42362.0,42351.0,0.5]
[1644606265737,0.08356193,42364.0,42351.0,0.5]
[1644606265738,0.08093246,42355.0,42351.0,0.5]
[1644606265936,0.03436776,42352.0,42351.0,0.5]
[1644606266136,0.41746989,42354.0,42346.0,0.0022]
[1644606266437,0.05,42352.0,42344.0,0.0003]
[1644606266635,0.05,42352.0,42341.0,0.00527752]
[1644606266636,0.03436776,42350.0,42341.0,0.00527752]
[1644606266882,1.05,42358.0,42341.0,0.00527752]
[1644606266883,0.05906,42354.0,42341.0,0.00527752]
[1644606267091,0.03436776,42350.0,42341.0,0.00527752]
[1644606267286,0.08074538,42349.0,42341.0,0.00527752]
[1644606267484,0.08074538,42349.0,42340.0,0.40857752]
[1644606267485,1.05,42349.0,42340.0,0.40857752]
[1644606267885,1.1,42349.0,42344.0,0.118126]
[1644606268083,0.05,42347.0,42344.0,0.118126]
[1644606268290,1.1,42349.0,42333.0,1.09422776]
[1644606268291,1.05,42349.0,42333.0,1.09422776]
[1644606268487,1.05,42349.0,42333.0,1.09563784]
[1644606268687,0.03375218,42346.0,42333.0,1.09563784]
[1644606268986,0.08356193,42348.0,42334.0,0.05906]
[1644606268987,0.31380787,42337.0,42334.0,0.05906]
[1644606269188,0.01731411,42341.0,42334.0,0.05906]
[1644606269387,0.39695074,42342.0,42334.0,0.05906]
[1644606269388,0.38947184,42342.0,42337.0,0.00028204]
[1644606269787,0.12235044,42347.0,42337.0,0.00028204]
[1644606269985,0.059079,42341.0,42337.0,0.00028204]
[1644606270189,0.00251766,42341.0,42337.0,0.00028204]
[1644606270386,0.00251766,42341.0,42334.0,0.33234214]
[1644606270631,1.21546968,42361.0,42338.0,1.05]
[1644606270632,0.33234214,42360.0,42338.0,1.05]
[1644606270830,0.62156968,42361.0,42338.0,1.05]
[1644606270831,0.4746,42361.0,42347.0,0.34149803]
[1644606271032,0.2384,42368.0,42347.0,0.34149803]
[1644606271034,0.059057,42358.0,42347.0,0.34149803]
[1644606271231,0.059057,42358.0,42351.0,0.05906]
[1644606271232,0.31144004,42353.0,42351.0,0.05906]
[1644606271434,0.11814,42354.0,42346.0,0.05]
[1644606271630,0.177219,42359.0,42346.0,0.05]
[1644606271832,0.83916797,42371.0,42343.0,0.05]
[1644606271834,0.55673872,42371.0,42343.0,0.05]
[1644606272032,0.059048,42365.0,42343.0,0.36215879]
[1644606272235,0.33234214,42369.0,42348.0,0.05]
[1644606272430,0.2499,42384.0,42367.0,0.39788928]
[1644606272431,0.33234214,42377.0,42367.0,0.39788928]
[1644606272632,0.33234214,42377.0,42349.0,0.0394]
[1644606272633,0.66946795,42364.0,42349.0,0.0394]
[1644606273032,0.72851695,42364.0,42346.0,0.05]
[1644606273234,0.72851695,42364.0,42349.0,0.118095]
[1644606273435,0.66946795,42364.0,42359.0,0.32163059]
[1644606273832,0.66946795,42364.0,42356.0,0.0394]
[1644606274033,0.65946795,42364.0,42352.0,0.0394]
[1644606274286,0.65946795,42364.0,42361.0,0.39604914]
[1644606274485,0.65946795,42364.0,42356.0,0.30232391]
[1644606274682,0.65946717,42364.0,42356.0,0.30232391]
[1644606274886,1.05,42363.0,42356.0,0.05]
[1644606275085,1.05,42363.0,42350.0,0.40378214]
[1644606275284,1.05,42363.0,42349.0,0.118095]
[1644606275484,0.65946717,42364.0,42359.0,0.63144924]
[1644606275685,0.18714152,42362.0,42360.0,0.36365933]
[1644606275886,0.00058617,42370.0,42360.0,0.7]
[1644606276086,0.00058617,42370.0,42362.0,0.05]
[1644606276283,0.09809,42383.0,42363.0,0.0394]
[1644606276488,0.09809,42383.0,42373.0,0.30279453]
[1644606276489,0.07367617,42383.0,42373.0,0.30279453]
[1644606276686,0.07367617,42383.0,42364.0,0.32852162]
[1644606276687,0.35912784,42378.0,42364.0,0.05]
[1644606276888,0.35912784,42378.0,42342.0,0.5]
[1644606276889,0.06983435,42372.0,42342.0,0.5]
[1644606277084,0.32852162,42371.0,42342.0,2.389]
[1644606277285,0.32852162,42371.0,42342.0,0.5]
[1644606277485,0.059053,42365.0,42342.0,0.5]
[1644606277684,0.059053,42365.0,42350.0,0.37587896]
[1644606278038,0.12320846,42365.0,42350.0,0.37587896]
[1644606278230,0.12320846,42365.0,42339.0,3.9421135]
[1644606278231,0.06719738,42357.0,42339.0,3.9421135]
[1644606278432,0.17320846,42365.0,42327.0,0.00116]
[1644606278433,0.08778848,42347.0,42327.0,0.00116]
[1644606278831,0.08778848,42347.0,42328.0,0.05]
[1644606278832,0.05,42347.0,42328.0,0.05]
[1644606279031,0.05,42347.0,42336.0,0.059071]
[1644606279032,0.34912354,42347.0,42336.0,0.059071]
[1644606279232,0.34912354,42347.0,42340.0,0.3002929]
[1644606279432,0.34912354,42347.0,42338.0,0.00028759]
[1644606279637,0.05,42347.0,42338.0,0.00028759]
[1644606279834,0.45667619,42348.0,42338.0,0.00028759]
[1644606280432,0.44192568,42348.0,42335.0,0.059074]
[1644606280634,0.44192568,42348.0,42331.0,0.12124]
[1644606280635,0.31921416,42340.0,42331.0,0.0031]
[1644606280835,0.19543067,42347.0,42335.0,0.00115044]
[1644606281032,0.05,42348.0,42335.0,0.00115044]
[1644606281243,0.377232,42359.0,42335.0,0.00115044]
[1644606281249,0.327232,42359.0,42335.0,0.00115044]
[1644606281433,0.05,42356.0,42335.0,0.00115044]
[1644606281631,0.15,42358.0,42335.0,0.00115044]
[1644606281632,0.07740422,42351.0,42335.0,0.00115044]
[1644606281885,0.36562211,42354.0,42335.0,0.00115044]
[1644606281886,0.36562211,42354.0,42345.0,0.00028754]
[1644606282083,0.41562211,42354.0,42345.0,0.00028754]
[1644606282283,0.41062211,42354.0,42345.0,0.00028754]
[1644606282483,0.045,42354.0,42345.0,0.00028754]
[1644606282686,0.177223,42362.0,42345.0,0.00028754]
[1644606282687,0.06401928,42360.0,42345.0,0.00028754]
[1644606282885,0.118142,42356.0,42334.0,0.32947024]
[1644606283084,0.12667677,42355.0,42347.0,8.686e-05]
[1644606283284,1.05,42354.0,42338.0,0.21988679]
[1644606283486,1.05,42354.0,42337.0,0.32947024]
[1644606283685,1.15,42354.0,42334.0,0.34373977]
[1644606283891,0.35056588,42353.0,42335.0,0.059082]
[1644606284086,0.07689726,42344.0,42335.0,0.059082]
[1644606284285,0.059084,42343.0,42335.0,0.059082]
[1644606284485,0.3627193,42337.0,42335.0,0.059082]
[1644606284687,0.059084,42343.0,42335.0,0.059082]
[1644606284885,0.05,42346.0,42335.0,0.059082]
[1644606285090,0.168167,42347.0,42335.0,0.059082]
[1644606285288,0.059078,42348.0,42341.0,0.19582175]
[1644606285544,5.0,42350.0,42342.0,0.05]
[1644606286144,5.0,42350.0,42342.0,0.37450007]
[1644606286339,5.0,42350.0,42342.0,0.05]
[1644606286940,5.0,42350.0,42343.0,0.33822626]
[1644606287340,5.05,42350.0,42348.0,0.24002704]
[1644606287541,5.05,42350.0,42344.0,0.05]
[1644606287846,5.05,42350.0,42345.0,0.05906]
[1644606288042,5.05,42350.0,42344.0,0.168119]
[1644606288241,5.05,42350.0,42343.0,0.38822626]
[1644606288440,5.05,42350.0,42343.0,0.62761638]
[1644606288842,5.05,42350.0,42343.0,0.38822626]
[1644606289041,5.05,42350.0,42344.0,0.059065]
[1644606289282,0.05,42346.0,42343.0,0.33822626]
[1644606289682,5.0,42350.0,42339.0,6.49e-06]
[1644606289683,0.06398805,42345.0,42339.0,6.49e-06]
[1644606289882,0.05,42345.0,42339.0,6.49e-06]
[1644606290078,5.0,42350.0,42344.0,6.462e-05]
[1644606290789,5.0,42350.0,42349.0,0.32863145]
[1644606291185,5.0,42350.0,42345.0,0.05]
[1644606291382,5.0,42350.0,42344.0,6.462e-05]
[1644606292182,0.07278003,42348.0,42344.0,6.462e-05]
[1644606292381,0.12278003,42348.0,42344.0,6.462e-05]
[1644606292782,1.05,42347.0,42342.0,0.04975069]
[1644606293041,1.05,42347.0,42337.0,0.00028539]
[1644606293042,1.30368282,42347.0,42337.0,0.00028539]
[1644606293227,1.05,42347.0,42337.0,0.00028539]
[1644606293426,0.05,42348.0,42334.0,0.32229605]
[1644606293827,5.05,42350.0,42340.0,0.20408024]
[1644606294127,0.00046647,42346.0,42342.0,0.35890517]
[1644606294530,0.00046647,42346.0,42343.0,0.330484]
[1644606294730,0.00046647,42346.0,42345.0,0.330484]
[1644606294932,0.4783,42383.0,42362.0,0.19524968]
[1644606295131,0.32701066,42379.0,42357.0,0.0394]
[1644606295332,0.3832819,42370.0,42357.0,0.0394]
[1644606295535,0.23642226,42370.0,42357.0,0.0394]
[1644606296430,0.07208413,42366.0,42351.0,0.32701066]
[1644606296629,0.07208413,42366.0,42347.0,1.05]
[1644606296630,0.29418246,42365.0,42348.0,0.32701066]
[1644606296888,0.19004125,42379.0,42349.0,0.0394]
[1644606296889,0.059042,42369.0,42349.0,0.0394]
[1644606297083,0.118094,42370.0,42350.0,0.0394]
[1644606297289,0.32701066,42376.0,42357.0,0.23467885]
[1644606297486,0.32701066,42377.0,42357.0,0.23467885]
[1644606297684,0.177139,42379.0,42357.0,0.23467885]
[1644606297889,0.32701066,42382.0,42367.0,1.05]
[1644606298088,0.059022,42383.0,42368.0,0.32701066]
[1644606298286,0.059022,42383.0,42366.0,0.0394]
[1644606298584,0.059022,42381.0,42368.0,0.05]
[1644606298788,0.059022,42381.0,42369.0,0.0394]
[1644606298986,0.059022,42381.0,42370.0,0.32701066]
[1644606299287,0.0005032,42377.0,42371.0,0.0394]
[1644606299685,0.00201199,42394.0,42376.0,0.2]
[1644606299887,0.00201199,42394.0,42377.0,0.69689466]
[1644606300089,3.67873596,42399.0,42384.0,0.117954]
[1644606300295,2.67953596,42399.0,42385.0,0.69689466]
[1644606300540,2.67953596,42399.0,42390.0,0.4]
[1644606300541,1.02023596,42399.0,42390.0,0.4]
[1644606300737,0.25731968,42399.0,42394.0,0.23817732]
[1644606300932,0.25731968,42399.0,42381.0,0.4]
[1644606300933,0.60522819,42393.0,42381.0,0.4]
[1644606301130,0.60522819,42393.0,42381.0,0.32701066]
[1644606301537,1.968e-05,42399.0,42384.0,0.4]
[1644606301731,0.33856468,42397.0,42385.0,0.36641066]
[1644606301931,0.33856468,42397.0,42385.0,0.0394]
[1644606302334,0.059011,42395.0,42385.0,0.0394]
[1644606302632,0.33856468,42397.0,42385.0,0.0394]
[1644606303033,0.25559338,42395.0,42385.0,0.0394]
[1644606303237,0.32701066,42396.0,42380.0,0.05]
[1644606303432,0.32701066,42396.0,42373.0,0.0394]
[1644606303636,0.07533618,42390.0,42373.0,0.0394]
[1644606303832,0.05,42390.0,42373.0,0.0394]
[1644606304033,2.21724604,42404.0,42374.0,0.35]
[1644606304036,0.00048,42377.0,42374.0,0.35]
[1644606304293,1.98007666,42404.0,42375.0,0.23736992]
[1644606304483,1.98007666,42404.0,42383.0,0.05]
[1644606304684,1.98007666,42404.0,42390.0,0.330484]
[1644606304984,1.98007666,42404.0,42392.0,0.389589]
[1644606304985,0.0023566,42395.0,42392.0,0.389589]
[1644606305185,1.98007666,42404.0,42393.0,1.40093372]
[1644606305186,0.98077666,42404.0,42393.0,1.40093372]
[1644606305386,0.2384,42406.0,42393.0,0.0894]
[1644606305584,0.2384,42406.0,42393.0,0.41641066]
[1644606305786,0.2384,42406.0,42393.0,0.51641066]
[1644606305984,0.28460325,42426.0,42408.0,0.3066465]
[1644606305985,0.0163,42411.0,42408.0,0.3066465]
[1644606306387,0.330466,42410.0,42405.0,0.0394]
[1644606306583,0.5167,42429.0,42409.0,0.22939713]
[1644606306784,0.5167,42429.0,42409.0,0.05]
[1644606306785,0.5297,42427.0,42409.0,0.05]
[1644606307184,0.5297,42427.0,42405.0,0.0394]
[1644606307185,0.058966,42428.0,42405.0,0.0394]
[1644606307385,0.5167,42429.0,42408.0,0.4]
[1644606307585,0.5167,42429.0,42409.0,0.42723046]
[1644606307784,0.5167,42429.0,42409.0,0.38783046]
[1644606308045,0.5167,42429.0,42413.0,0.058952]
[1644606308443,0.32245846,42414.0,42396.0,0.0394]
[1644606308644,0.10478484,42412.0,42396.0,0.5]
[1644606309041,0.07446898,42404.0,42396.0,0.5]
[1644606309240,0.10478484,42412.0,42390.0,0.058988]
[1644606309442,0.6893242,42405.0,42388.0,0.117968]
[1644606309642,0.05,42405.0,42388.0,0.517968]
[1644606309840,0.14478484,42412.0,42388.0,0.517968]
[1644606309841,0.38783046,42411.0,42388.0,0.10367728]
[1644606310343,2.55274407,42395.0,42388.0,0.10367728]
[1644606310641,2.55274407,42395.0,42387.0,0.058983]
[1644606310642,0.25270588,42391.0,42380.0,0.117996]
[1644606310842,0.25270588,42391.0,42377.0,0.6381]
[1644606310843,0.28988719,42388.0,42377.0,0.6381]
[1644606311045,0.28988719,42388.0,42377.0,0.1381]
[1644606311242,0.28988719,42388.0,42368.0,0.235968]
[1644606311243,0.05,42388.0,42368.0,0.235968]
[1644606311442,0.05,42388.0,42372.0,0.059003]
[1644606311643,0.05,42388.0,42373.0,0.118009]
[1644606311644,0.40079689,42387.0,42373.0,0.118009]
[1644606311890,0.07398782,42388.0,42374.0,0.1381]
[1644606311891,0.05,42388.0,42374.0,0.1381]
[1644606312088,0.05,42388.0,42380.0,0.1381]